fUSD/lending_fUSD_20240209
["ID","MTS","AMOUNT","RATE_DAILY","PERIOD"]
[313630228,1707497955303,2000.0,0.00021764,2]
[313630229,1707497955613,210.96449599,0.00021,2]
[313630230,1707497958054,565.07621881,0.000202,2]
[313630231,1707497964667,333.13076269,0.00021,2]
[313630232,1707497967170,632.94626721,0.00021789,2]
[313630233,1707497968099,23900.0,0.00021774,2]
[313630234,1707497976583,421.84517276,0.00021789,2]
[313630235,1707497994581,227.20579612,0.00021789,2]
[313630236,1707497996883,155.40880575,0.0002247,2]
[313630237,1707498016150,2512.98312604,0.0002,2]
[313630238,1707498027438,738.05,0.00019856,2]
[313630239,1707498027646,738.05,0.0002212,2]
[313630240,1707498032152,2512.98312604,0.0002,2]
[313630241,1707498054143,2512.98312604,0.0002,2]
[313630242,1707498058573,302.22,0.00021763,2]
[313630243,1707498067464,152.53,0.00021763,2]
[313630244,1707498074171,2512.98312604,0.0002,2]
[313630245,1707498094219,2512.98312604,0.0002,2]
[313630246,1707498114160,2512.98312604,0.0002,2]
[313630247,1707498132149,2512.98312604,0.0002,2]
[313630248,1707498135153,150.86603333,0.00022,2]
[313630249,1707498150151,2512.98312604,0.0002,2]
[313630250,1707498170169,2511.88686302,0.0002,2]
[313630251,1707498174541,2689.3,0.00021763,2]
[313630252,1707498193480,840.0,0.00021778,2]
[313630253,1707498240887,5474.14,0.00021963,2]
[313630254,1707498274101,222.28,0.00021779,2]
[313630557,1707498485353,174.32,0.00021727,2]
[313630558,1707498486747,683.85119819,0.00021727,2]
[313630559,1707498486769,858.17119819,0.00021727,2]
[313630560,1707498486793,457.97760362,0.00021727,2]
[313630568,1707498526892,363.35841472,0.00022503,2]
[313630578,1707498541616,36.83517985,0.00022503,2]
[313630579,1707498541642,453.90394854,0.00022503,2]
[313630580,1707498544871,404.26724965,0.00022503,2]
[313630581,1707498544894,31.83490439,0.00022503,2]
[313630582,1707498556964,216.09925222,0.00022503,2]
[313630583,1707498559946,155.58654495,0.000225,2]
[313630584,1707498564141,155.0,0.00022503,2]
[313630598,1707498596740,-158.54812111,0.00022541,2]
[313630599,1707498596762,-158.54812111,0.00022542,2]
[313630600,1707498596779,-100.90375778,0.00022542,2]
[313630610,1707498631966,-436.10215404,0.00022541,2]
[313630611,1707498631976,-2213.92051564,0.00022542,2]
[313630612,1707498631987,-658.46,0.00022542,2]
[313630613,1707498631999,-388.42893379,0.00022542,2]
[313630614,1707498632023,-159611.73867168,0.00022542,2]
[313630615,1707498632033,-290.3213485,0.00022597,2]
[313630616,1707498632042,-285.16657938,0.00022598,2]
[313630617,1707498632052,-155.37834377,0.00022598,2]
[313630618,1707498632062,-150.0,0.00022598,2]
[313630619,1707498632072,-10380.601,0.00022599,2]
[313630620,1707498632082,-1000.0,0.000226,2]
[313630621,1707498632092,-464.0,0.00022659,2]
[313630622,1707498632102,-5395.01,0.00022659,2]
[313630623,1707498632111,-715.14,0.00022659,2]
[313630624,1707498632121,-736.04,0.00022659,2]
[313630625,1707498632131,-215.76741637,0.0002266,2]
[313630626,1707498632140,-720.25,0.00022661,2]
[313630627,1707498632150,-499.99,0.00022661,2]
[313630628,1707498632160,-526.28081142,0.00022662,2]
[313630629,1707498632170,-720.06,0.00022663,2]
[313630630,1707498632180,-1300.15497904,0.00022665,2]
[313630631,1707498632191,-731.32,0.00022666,2]
[313630632,1707498632202,-717.71,0.00022667,2]
[313630633,1707498632214,-719.9,0.00022669,2]
[313630634,1707498632223,-2900.2394,0.0002267,2]
[313630635,1707498632233,-984.709,0.0002267,2]
[313630636,1707498632242,-721.66,0.0002267,2]
[313630637,1707498632252,-1406.26397173,0.00022697,2]
[313630638,1707498632261,-240.90015327,0.00022697,2]
[313630639,1707498632270,-971.1066793,0.00022697,2]
[313630640,1707498632281,-2791.0232342,0.00022697,2]
[313630641,1707498632292,-348.37706593,0.00022697,2]
[313630642,1707498632302,-608.61791129,0.00022697,2]
[313630643,1707498632311,-215.58613326,0.00022697,2]
[313630644,1707498632321,-1117.09092505,0.00022698,2]
[313630645,1707498632331,-1049.89130325,0.00022698,2]
[313630646,1707498632340,-155.0,0.00022698,2]
[313630647,1707498632350,-119046.099655,0.00022699,2]
[313630648,1707498632392,-3739.65163722,0.00022699,2]
[313630650,1707498632401,-471.694,0.000227,2]
[313630652,1707498632410,-826.16049223,0.000227,2]
[313630655,1707498632422,-1864.55715174,0.000227,2]
[313630657,1707498632434,-439.62247958,0.000227,2]
[313630659,1707498632445,-1419.47488724,0.000227,2]
[313630663,1707498632473,-375.48056187,0.000227,2]
[313630667,1707498632503,-14108.69602734,0.000227,2]
[313630669,1707498632513,-52905.24487793,0.000227,2]
[313630735,1707498640330,-10000.0,0.000227,2]
[313630736,1707498640343,-1783.66,0.000227,2]
[313630737,1707498640390,-677.48546916,0.000227,2]
[313630738,1707498640402,-179633.60965291,0.000227,2]
[313630739,1707498640412,-500.0,0.000227,8]
[313630740,1707498640423,-710.23,0.00022795,2]
[313630741,1707498640434,-1029.73,0.000228,2]
[313630742,1707498640444,-924.0091,0.000228,2]
[313630744,1707498640453,-160.92398459,0.000228,2]
[313630746,1707498640462,-1100.0,0.000228,8]
[313630748,1707498640472,-155.53582091,0.00022883,2]
[313630750,1707498640482,-729.17111265,0.000229,2]
[313630751,1707498640492,-532.55622453,0.000229,2]
[313630752,1707498640501,-1700.0,0.000229,8]
[313630755,1707498640511,-800.0,0.00022959,2]
[313630758,1707498640521,-800.0,0.00022959,2]
[313630759,1707498640531,-194.28799479,0.00022986,2]
[313630760,1707498640541,-710.72,0.00022988,2]
[313630761,1707498640551,-1077.97171608,0.00022996,2]
[313630762,1707498640564,-249.72606267,0.00022996,2]
[313630763,1707498640573,-489.00832469,0.00022996,2]
[313630765,1707498640587,-10565.52022496,0.00022996,2]
[313630766,1707498640596,-365.44908735,0.00022996,2]
[313630767,1707498640606,-526.21762846,0.00022996,2]
[313630768,1707498640616,-1686.36413778,0.00022997,2]
[313630769,1707498640625,-3640.39103293,0.00022998,2]
[313630770,1707498640635,-158.08966468,0.00022998,2]
[313630771,1707498640644,-155.37044659,0.00022998,2]
[313630772,1707498640654,-309.65015093,0.00022998,2]
[313630773,1707498640664,-4645.45749638,0.00022998,2]
[313630774,1707498640675,-203.43612147,0.00022998,2]
[313630775,1707498640685,-162.76477441,0.00022998,2]
[313630776,1707498640694,-2154.11089762,0.00022998,2]
[313630777,1707498640703,-177.98165687,0.00022998,2]
[313630778,1707498640713,-155.60915498,0.00022998,2]
[313630779,1707498640724,-296.72131859,0.00022998,2]
[313630780,1707498640734,-3064.79882151,0.00022998,2]
[313630781,1707498640743,-294.8597145,0.00022998,2]
[313630782,1707498640753,-391.5062067,0.00022998,2]
[313630783,1707498640763,-2148.03579195,0.00022998,2]
[313630784,1707498640773,-155.0,0.00022998,2]
[313630785,1707498640783,-319.8182542,0.00022998,2]
[313630786,1707498640792,-194.46875786,0.00022998,2]
[313630787,1707498640801,-577.81805629,0.00022998,2]
[313630788,1707498640811,-1857.7043671,0.00022998,2]
[313630789,1707498640820,-155.0,0.00022998,2]
[313630790,1707498640830,-228.89897837,0.00022998,2]
[313630791,1707498640840,-2029.34482346,0.00022998,2]
[313630792,1707498640849,-159.81808103,0.00022998,2]
[313630793,1707498640859,-288.87564345,0.00022998,2]
[313630794,1707498640868,-731.15,0.00022998,2]
[313630795,1707498640878,-270.6074957,0.00022999,2]
[313630796,1707498640888,-316.26918918,0.00022999,2]
[313630797,1707498640898,-342.76313351,0.00022999,2]
[313630798,1707498640908,-204.53410873,0.00022999,2]
[313630799,1707498640918,-155.5341225,0.00022999,2]
[313630800,1707498640928,-1305.28895538,0.00022999,2]
[313630801,1707498640938,-274.01432838,0.00022999,2]
[313630802,1707498640949,-285.80001639,0.00022999,2]
[313630803,1707498640959,-156.04964463,0.00022999,2]
[313630804,1707498640970,-3569.39351866,0.00022999,2]
[313630805,1707498640980,-247.34763938,0.00022999,2]
[313630806,1707498640990,-158.26556361,0.00022999,2]
[313630807,1707498641001,-155.0,0.00022999,2]
[313630808,1707498641011,-155.42308366,0.00022999,2]
[313630809,1707498641022,-155.0,0.00022999,2]
[313630810,1707498641034,-3312.12304812,0.00022999,2]
[313630811,1707498641043,-1007.2399,0.00022999,2]
[313630812,1707498641053,-725067.81208374,0.00023,2]
[313630813,1707498641063,-197959.09141012,0.00023,2]
[313630828,1707498641432,-23485.0090404,0.00023,2]
[313630829,1707498641445,-549.6544642,0.00023,2]
[313630830,1707498641457,-577.90978282,0.00023,2]
[313630838,1707498643191,-2554.71825638,0.00022999,2]
[313630839,1707498643201,-4016.12896462,0.00023,2]
[313630840,1707498643248,-3535.61779168,0.00023,2]
[313630847,1707498646135,-1069.51230699,0.00023,2]
[313630864,1707498777553,858.17119819,0.00022442,2]
[313630865,1707498777575,858.17119819,0.00022442,2]
[313630866,1707498777597,858.17119819,0.00022442,2]
[313630867,1707498777620,858.17119819,0.00022442,2]
[313630868,1707498777645,858.17119819,0.00022442,2]
[313630869,1707498777667,17535.58710905,0.00022442,2]
[313630871,1707498990142,778.6407282,0.00022442,4]
[313630872,1707498990408,285.5102529,0.00022442,2]
[313630873,1707498991033,210.0301382,0.00022442,2]
[313630874,1707498991103,362.71873317,0.00022442,2]
[313630875,1707498992330,155.0,0.00022442,2]
[313630876,1707498992958,157.46476505,0.00022442,2]
[313630877,1707498993047,535.58468396,0.00022442,2]
[313630878,1707498993075,155.0,0.00022442,2]
[313630879,1707498993768,205.0,0.00022031,2]
[313630880,1707498994288,205.0,0.00026777,9]
[313630881,1707498994749,526.80274005,0.00022442,2]
[313630882,1707498995379,403.90989619,0.00021769,2]
[313630883,1707498997029,1102.56052705,0.00022442,2]
[313630884,1707498997240,500.0,0.00022442,2]
[313630885,1707498998259,869.53329738,0.00022442,2]
[313630886,1707498998388,810.06570822,0.00022442,2]
[313630887,1707498998648,216.20599432,0.00022442,2]
[313630888,1707498999562,5213.59984836,0.00022442,2]
[313630889,1707499000540,2332.87675127,0.00022442,2]
[313630890,1707499001462,156.67379422,0.00020198,2]
[313630891,1707499002661,200.02179879,0.00022442,2]
[313630892,1707499002816,155.0,0.00022442,2]
[313630893,1707499003698,8778.92016,0.00022442,2]
[313630894,1707499003926,284.04920492,0.00022442,2]
[313630895,1707499004000,271.72433336,0.00022442,2]
[313630896,1707499004554,1027.60719385,0.00022442,2]
[313630897,1707499005159,876.47925292,0.00020422,2]
[313630898,1707499005451,888.14088862,0.00022442,2]
[313630899,1707499006316,226.16609982,0.00022442,2]
[313630900,1707499008399,404.10153138,0.00022442,2]
[313630901,1707499009126,155.0,0.00022442,2]
[313630902,1707499010846,157.46476505,0.00022442,2]
[313630903,1707499010955,535.58468396,0.00022442,2]
[313630904,1707499010996,209.47889939,0.00022442,2]
[313630905,1707499012901,361.92786822,0.00022442,2]
[313630906,1707499013385,403.90989619,0.00021769,2]
[313630907,1707499015040,189.2879461,0.00022442,2]
[313630908,1707499015890,177.25,0.00016712,2]
[313630909,1707499017203,500.0,0.00022442,2]
[313630910,1707499017550,3553.21192074,0.00022442,2]
[313630911,1707499019912,284.04920492,0.00022442,2]
[313630912,1707499020254,869.53329738,0.00022442,2]
[313630913,1707499020382,810.06570822,0.00022442,2]
[313630914,1707499020518,2332.87675127,0.00022442,2]
[313630915,1707499020567,1011.37885469,0.00022442,2]
[313630916,1707499023989,328.24974344,0.00022442,2]
[313630917,1707499026637,157.46476505,0.00022442,2]
[313630918,1707499026765,219.96854828,0.00022442,2]
[313630919,1707499027142,876.47925292,0.00020422,2]
[313630920,1707499027445,888.14088862,0.00022442,2]
[313630921,1707499049184,876.47925292,0.00020422,2]
[313630922,1707499189438,23900.0,0.00021952,2]
[313630923,1707499193494,672.0,0.00021975,2]
[313630924,1707499228898,157.65,0.00017588,2]
[313630926,1707499298528,420.59,0.00022004,2]
[313630927,1707499321963,309.1,0.00022004,2]
[313630928,1707499338525,860.73,0.00020098,2]
[313630929,1707499338712,860.73,0.00022362,2]
[313630930,1707499387787,250.0,0.00022054,2]
[313630931,1707499405360,2000.0,0.0002205,2]
[313630932,1707499414699,168.09,0.00022091,2]
[313630933,1707499464835,250.0,0.00021988,2]
[313630934,1707499549805,-282.53144061,0.00022554,2]
[313630935,1707499549825,-3694.67385054,0.00022554,4]
[313630936,1707499549846,-436.10215404,0.00022555,2]
[313630937,1707499549866,-311.58314941,0.00022555,2]
[313630938,1707499549888,-290.3213485,0.00022556,2]
[313630939,1707499549908,-293.43334053,0.00022556,2]
[313630940,1707499549931,-4647.66880645,0.00022556,2]
[313630941,1707499549953,-386.40329842,0.00022557,2]
[313630942,1707499549973,-4265.84733406,0.00022557,2]
[313630943,1707499549993,-161.27842766,0.00022558,2]
[313630944,1707499550015,-155.33960447,0.00022562,2]
[313630945,1707499550036,-150.0,0.00022661,2]
[313630946,1707499550061,-150.0,0.00022661,2]
[313630947,1707499550082,-157.7,0.00022712,2]
[313630948,1707499550102,-11585.4579722,0.00022767,2]
[313630949,1707499550123,-390.4,0.00022767,2]
[313630950,1707499550143,-2830.25927311,0.00022768,2]
[313630951,1707499642603,462.4,0.00022136,2]
[313630952,1707499665753,13956.09,0.00022059,2]
[313630953,1707499714204,205.0,0.00022404,2]
[313630954,1707499736670,350.49,0.00022073,2]
[313630963,1707499790754,157.65,0.00017624,2]
[313630972,1707499830120,774.65,0.00020145,2]
[313630973,1707499830297,774.65,0.00022409,2]
[313630980,1707499832265,-386.40329842,0.00022755,2]
[313630981,1707499832274,-155.0,0.00022756,2]
[313630982,1707499832284,-436.10215404,0.00022757,2]
[313630983,1707499832293,-269.68289212,0.00022764,2]
[313630984,1707499832302,-7344.64488613,0.00022768,2]
[313630985,1707499832313,-885.67850219,0.00022768,2]
[313630986,1707499832371,-1003.23766428,0.00022768,2]
[313630987,1707499832384,-314.74309599,0.00022768,2]
[313630988,1707499832396,-10327.26754022,0.00022768,2]
[313630989,1707499832405,-206.37007978,0.0002277,2]
[313630990,1707499832416,-21181.62992022,0.0002277,2]
[313630991,1707499832426,-155.0,0.000228,2]
[313630992,1707499832435,-400.0,0.000228,8]
[313630993,1707499832445,-174.34,0.0002281,2]
[313630994,1707499832455,-800.0,0.00022815,2]
[313630995,1707499832464,-800.0,0.00022816,2]
[313630996,1707499832474,-800.0,0.00022816,2]
[313630997,1707499832483,-200.0,0.00022816,2]
[313630998,1707499832493,-189.9069,0.00022899,2]
[313630999,1707499832502,-3467.5293,0.000229,2]
[313631001,1707499832512,-166.95636463,0.000229,2]
[313631003,1707499832521,-2014.51508421,0.000229,2]
[313631005,1707499832530,-750.26763574,0.000229,2]
[313631007,1707499832540,-531.93760827,0.000229,2]
[313631008,1707499832549,-1054.04416838,0.000229,2]
[313631009,1707499832559,-800.0,0.000229,8]
[313631010,1707499832568,-167.0,0.00022969,2]
[313631011,1707499832577,-215.14131146,0.00022975,2]
[313631013,1707499832586,-194.28799479,0.0002299,2]
[313631014,1707499832595,-557.15402815,0.00022994,2]
[313631015,1707499832604,-161.27842766,0.00022994,2]
[313631016,1707499832613,-751.02071852,0.00022994,2]
[313631017,1707499832622,-271.28353299,0.00022994,2]
[313631018,1707499832631,-311.58314941,0.00022994,2]
[313631019,1707499832641,-293.43334053,0.00022994,2]
[313631020,1707499832651,-3694.67385054,0.00022994,4]
[313631021,1707499832661,-284.64637733,0.00022994,2]
[313631022,1707499832670,-374.0650919,0.00022994,2]
[313631023,1707499832680,-4647.66880645,0.00022995,2]
[313631024,1707499832690,-514.230885,0.00022996,2]
[313631025,1707499832699,-1114.11164625,0.00022996,2]
[313631026,1707499832747,-42085.60596284,0.00022996,2]
[313631027,1707499832757,-5469.38651961,0.00022996,2]
[313631028,1707499832766,-155.0,0.00022996,2]
[313631029,1707499832775,-2200.29617303,0.00022997,2]
[313631030,1707499832787,-117.24953609,0.00022997,2]
[313631031,1707499832797,-592.00066195,0.00022998,2]
[313631032,1707499832808,-524.66332693,0.00022998,2]
[313631033,1707499832817,-292.13000086,0.00022998,2]
[313631034,1707499832827,-487.43488106,0.00022998,2]
[313631035,1707499832836,-1146.08153699,0.00022998,2]
[313631036,1707499832845,-157.68028817,0.00022998,2]
[313631037,1707499832855,-8714.70432937,0.00022998,2]
[313631038,1707499832864,-155.36886781,0.00022998,2]
[313631039,1707499832873,-354.51887223,0.00022998,2]
[313631040,1707499832883,-4540.92241569,0.00022998,2]
[313631041,1707499832892,-246.06675655,0.00022998,2]
[313631042,1707499832903,-178.66206718,0.00022998,2]
[313631043,1707499832912,-11003.03008245,0.00022998,2]
[313631044,1707499832938,-637.85351851,0.00022998,2]
[313631045,1707499832951,-1042.36206145,0.00022998,2]
[313631058,1707499838212,-1000.0,0.000229,2]
[313631059,1707499838222,-11.03399856,0.00022998,2]
[313631060,1707499838233,-969.69002,0.00022998,2]
[313631061,1707499838244,-1008.359936,0.00022998,2]
[313631062,1707499838255,-1273.19236374,0.00022998,2]
[313631063,1707499838267,-896.49940795,0.00022998,2]
[313631064,1707499838276,-2149.08139043,0.00022998,2]
[313631065,1707499838286,-1261.97354369,0.00022998,2]
[313631066,1707499838295,-700.31980649,0.00022998,2]
[313631067,1707499838306,-191.78126295,0.00022998,2]
[313631068,1707499838315,-296.88912932,0.00022998,2]
[313631069,1707499838325,-2605.00015539,0.00022998,2]
[313631070,1707499838334,-1596.3601236,0.00022999,2]
[313631071,1707499838344,-300.02,0.00022999,2]
[313631072,1707499838354,-150.01,0.00022999,2]
[313631073,1707499838364,-1000.0,0.00022999,2]
[313631074,1707499838373,-12680.87399047,0.00023,2]
[313631075,1707499838408,-332.69995427,0.00023,2]
[313631076,1707499838419,-358.01197968,0.00023,2]
[313631077,1707499838447,-43144.101,0.00023,2]
[313631078,1707499838476,-54213.87540193,0.00023,2]
[313631079,1707499838537,-14770.70711401,0.00023,2]
[313631080,1707499838549,-462.09903594,0.00023,2]
[313631081,1707499838586,-287.85,0.00023,2]
[313631082,1707499838598,-64531.50833945,0.00023,2]
[313631083,1707499838608,-200367.11919724,0.00023,2]
[313631166,1707499840861,-3189.93264997,0.00023,2]
[313631167,1707499840872,-1569.25999997,0.00023,2]
[313631168,1707499840884,-401.2113,0.00023,2]
[313631169,1707499840920,-8944.93114976,0.00023,2]
[313631170,1707499840931,-6858.24207392,0.00023,2]
[313631171,1707499841677,-263.15305045,0.00022999,2]
[313631172,1707499841688,-44.87996489,0.00023,2]
[313631173,1707499843355,-5383.34644858,0.00023,2]
[313631174,1707499844486,-4990.64343934,0.00023,2]
[313631190,1707499846371,-969.63669465,0.00023,2]
[313631191,1707499846384,-571.0400001,0.00023,2]
[313631192,1707499846396,-253.769991,0.00023,2]
[313631193,1707499846407,-1052.9648588,0.00023,2]
[313631194,1707499846419,-310.21490018,0.00023,2]
[313631195,1707499846431,-271.6000001,0.00023,2]
[313631196,1707499846443,-340.29000006,0.00023,2]
[313631197,1707499846455,-311.16,0.00023,2]
[313631198,1707499846467,-325.14395,0.00023,2]
[313631199,1707499846488,-11716.7970971,0.00023,2]
[313631206,1707499850885,198.80003873,0.00017624,2]
[313631207,1707499857727,12098.9785034,0.0002,2]
[313631208,1707499863754,205.0,0.00022404,2]
[313631209,1707499894404,203.0,0.00022404,2]
[313631210,1707499955283,156.05653195,0.00020696,2]
[313631212,1707500070609,8472.21910425,0.000276,30]
[313631213,1707500118769,150.0,0.00022501,2]
[313631216,1707500175797,630.08,0.00022303,2]
[313631217,1707500182321,238.78,0.0002247,2]
[313631218,1707500194383,200.0,0.00022363,2]
[313631219,1707500224132,292.07,0.00022242,2]
[313631220,1707500237793,23900.0,0.0002225,2]
[313631223,1707500300418,710.87,0.00020343,2]
[313631224,1707500367738,2000.0,0.00022245,2]
[313631225,1707500387651,166.41,0.00022245,2]
[313631226,1707500389652,250.0,0.00022245,2]
[313631227,1707500412920,952.79526646,0.00022245,5]
[313631228,1707500432348,155.09,0.00022112,2]
[313631229,1707500446502,288.74946755,0.00022207,2]
[313631230,1707500449065,421.84517276,0.00021982,2]
[313631231,1707500449691,155.0,0.00022245,2]
[313631232,1707500454981,155.43961401,0.00022245,2]
[313631233,1707500457360,155.0,0.00022245,2]
[313631234,1707500461928,155.32741439,0.00022245,2]
[313631235,1707500463838,5714.4897471,0.00022245,2]
[313631236,1707500464814,420.94266229,0.00021982,2]
[313631237,1707500465442,168.91664604,5e-05,2]
[313631238,1707500465681,285.5102529,0.00022245,2]
[313631239,1707500466444,155.0,0.00022,2]
[313631240,1707500470162,155.0,0.00022245,2]
[313631241,1707500471576,155.0,0.00022245,2]
[313631242,1707500483197,165.51,0.00021987,2]
[313631243,1707500487301,1852.42,0.00021987,2]
[313631244,1707500489578,155.0,0.00022245,2]
[313631245,1707500556674,157.01,0.0002199,2]
[313631246,1707500568921,10000.0,0.0002199,2]
[313631247,1707500615681,5559.62,0.00021993,2]
[313631248,1707500628015,155.21,0.00022158,2]
[313631249,1707500628074,155.21,0.00022323,2]
[313631250,1707500628195,155.21,0.00022488,2]
[313631251,1707500674607,495.93,0.00021947,2]
[313631252,1707500676729,805.01,0.00021947,2]
[313631253,1707500697332,250.0,0.00021947,2]
[313631254,1707500700478,2249.52,0.00021947,2]
[313631255,1707500740260,200.0,0.00021936,2]
[313631256,1707500771100,200.0,0.00021932,2]
[313631257,1707500773503,169.02,0.00021921,2]
[313631258,1707500785204,150.0,0.00021921,2]
[313631259,1707500793898,205.0,0.0002209,2]
[313631260,1707500810016,793.59,0.00020018,2]
[313631261,1707500810237,793.59,0.00022282,2]
[313631262,1707500820710,2000.0,0.00021936,2]
[313631263,1707500830914,289.53,0.00021926,2]
[313631264,1707500852787,250.0,0.00021923,2]
[313631265,1707500899099,8607.21,0.00022096,2]
[313631266,1707500921855,150.0,0.00022,2]
[313631278,1707500989243,11211.82,0.00021933,2]
[313631281,1707501003002,150.0,0.00022,2]
[313631282,1707501003186,150.0,0.00022,2]
[313631283,1707501003386,249.56561815,0.00022,2]
[313631297,1707501031435,-154.57658889,0.00022528,2]
[313631298,1707501031444,-710.10782819,0.0002255,2]
[313631299,1707501031456,-331.21575035,0.0002255,2]
[313631300,1707501031465,-531.20352733,0.00022551,2]
[313631301,1707501031474,-150.0,0.00022628,2]
[313631302,1707501031483,-150.0,0.00022628,2]
[313631303,1707501031493,-8161.64319391,0.00022629,2]
[313631304,1707501031505,-13066.09204048,0.00022629,2]
[313631305,1707501031513,-155.21,0.00022653,2]
[313631306,1707501031522,-9014.58896566,0.00022787,2]
[313631307,1707501031532,-177.189,0.00022796,2]
[313631308,1707501031541,-56600.4807,0.00022797,2]
[313631309,1707501031550,-499.99,0.00022797,2]
[313631310,1707501031559,-229.28491076,0.00022798,2]
[313631311,1707501031569,-254.53226998,0.000228,2]
[313631312,1707501031579,-517.41,0.000228,2]
[313631313,1707501031588,-200.0,0.00022816,2]
[313631314,1707501031598,-500.0,0.00022816,2]
[313631315,1707501031607,-800.0,0.00022816,2]
[313631316,1707501031617,-200.0,0.00022816,2]
[313631317,1707501031626,-155.21,0.00022818,2]
[313631318,1707501031635,-229.28491075,0.00022849,2]
[313631319,1707501031645,-264.88455642,0.00022883,2]
[313631320,1707501031654,-235.40837396,0.00022895,2]
[313631321,1707501031663,-319.62,0.00022895,2]
[313631323,1707501031673,-151215.0223,0.00022897,2]
[313631325,1707501031683,-3081.86741059,0.00022898,2]
[313631327,1707501031692,-497.10752344,0.00022898,2]
[313631329,1707501031704,-371.56293518,0.00022898,2]
[313631334,1707501031733,-356.80331927,0.00022898,2]
[313631337,1707501031743,-951.2716878,0.00022898,2]
[313631339,1707501031782,-406.075,0.00022898,2]
[313631340,1707501031794,-2500.2,0.00022898,2]
[313631341,1707501031806,-255.4812832,0.00022898,2]
[313631342,1707501031818,-4752.1,0.00022898,2]
[313631363,1707501040288,-2283.679,0.00022697,2]
[313631364,1707501040297,-3124.686829,0.00022898,2]
[313631365,1707501040306,-197.73253696,0.00022899,2]
[313631366,1707501040315,-922.28864735,0.00022899,2]
[313631367,1707501040325,-4102.9362,0.000229,2]
[313631368,1707501040334,-8263.7521,0.000229,2]
[313631369,1707501040343,-3036.448,0.000229,2]
[313631370,1707501040353,-1000.0,0.000229,2]
[313631371,1707501040367,-600.21410856,0.000229,2]
[313631372,1707501040376,-229.28491075,0.000229,2]
[313631373,1707501040385,-300.0,0.000229,8]
[313631374,1707501040395,-155.21,0.00022983,2]
[313631375,1707501040405,-194.28799479,0.0002299,2]
[313631376,1707501040415,-355.60856944,0.00022996,2]
[313631377,1707501040425,-2357.61480891,0.00022996,2]
[313631378,1707501040435,-200.0,0.00022996,2]
[313631379,1707501040445,-155.40896887,0.00022996,2]
[313631380,1707501040455,-155.0,0.00022996,2]
[313631381,1707501040465,-239.95844186,0.00022996,2]
[313631382,1707501040475,-191.9801931,0.00022996,2]
[313631383,1707501040485,-364.01510066,0.00022996,2]
[313631384,1707501040498,-6090.82495308,0.00022996,2]
[313631385,1707501040508,-599.27979208,0.00022996,2]
[313631386,1707501040517,-280.97908916,0.00022996,2]
[313631387,1707501040526,-155.60685558,0.00022996,2]
[313631388,1707501040535,-2602.5031563,0.00022996,2]
[313631389,1707501040547,-725.48054107,0.00022996,2]
[313631390,1707501040557,-324.89424844,0.00022996,2]
[313631391,1707501040568,-75.67131992,0.00022996,2]
[313631392,1707501040578,-181.43933103,0.00022996,2]
[313631394,1707501040587,-527.29382982,0.00022997,2]
[313631395,1707501040596,-262.32745257,0.00022998,2]
[313631396,1707501040606,-206.62735527,0.00022998,2]
[313631397,1707501040615,-766.44071139,0.00022998,2]
[313631398,1707501040627,-1207.6,0.00022998,2]
[313631399,1707501040638,-1076.7,0.00022998,2]
[313631400,1707501040650,-305.51235568,0.00022998,2]
[313631401,1707501040662,-703.75012937,0.00022998,2]
[313631402,1707501040680,-8843.17018334,0.00022998,2]
[313631403,1707501040714,-30318.37888256,0.00022998,2]
[313631404,1707501040724,-1908.25305215,0.00022999,2]